[Event "CCT Chessable Masters D-III 2024"]
[Site "Online"]
[Date "2024.02.05"]
[Round "56"]
[White "Safarli, Eltaj"]
[Black "bardiya_Daneshvar"]
[Result "1/2-1/2"]
[ECO "B50"]
[WhiteElo "2604"]
[BlackElo "2631"]
[Annotator "TA"]
[PlyCount "70"]
[EventDate "2024.01.12"]
[EventType "k.o."]
[EventCountry "NET"]
[SourceTitle "playchess.com"]
[Source "ChessBase"]
[SourceQuality "1"]
[TimeControl "600+2"]

{[%evp 9,70,-4,-4,12,15,-2,0,0,-2,0,0,-2,0,0,0,0,0,0,0,0,0,0,0,-6,0,-8,0,0,26,18,20,14,77,10,50,73,168,42,38,40,50,75,48,68,60,20,24,23,9,7,75,67,64,79,55,69,62,72,65,60,79,57,61]} 1. e4 {[%emt 0:00:03]} c5 {[%emt 0:00:03]} 2. Nf3 {[%emt 0:00:01]} d6 {[%emt 0:00:00]} 3. Nc3 {[%emt 0:00:01]} Nf6 {[%emt 0:00:02]} 4. e5 {[%emt 0:00:01]} dxe5 {[%emt 0:00:00]} 5. Nxe5 {[%emt 0:00:00]} a6 {[%emt 0:00:00]} 6. g3 {[%emt 0:00:01]} Qd6 {[%emt 0:00:02]} 7. Nf3 {[%emt 0:00:01]} b5 {[%emt 0:00:01]} 8. Bg2 {[%emt 0:00:00] The position is equal.} Bb7 {[%emt 0:00:00]} 9. O-O {[%emt 0:00:01]} e6 {[%emt 0:00:01]} 10. d3 {[%emt 0:00:00]} Be7 {[%emt 0:00:01]} 11. a4 {[%emt 0:00:01]} b4 {[%emt 0:00:04]} 12. Nb1 {[%emt 0:00:00][%cal Bc3b1,Bb1d2,Bd2c4][%mdl 32]} O-O {[%emt 0:00:07]} 13. Nbd2 {[%emt 0:00:01]} Qc7 {[%emt 0:00:02]} 14. Nc4 {[%emt 0:00:02]} Nd5 {[%emt 0:00:00]} 15. Re1 {[%emt 0:00:09]} Nc6 {[%emt 0:00:01]} 16. h4 {[%emt 0:00:02]} Rad8 {[%emt 0:00:02]} 17. Bd2 {[%emt 0:00:15]} h6 {[%emt 0:00:28]} 18. c3 {[%emt 0:01:01]} Bf6 {[%emt 0:00:10]} 19. Rc1 {[%emt 0:00:03]} bxc3 {[%emt 0:00:15]} 20. bxc3 {[%emt 0:00:00]} Rd7 {[%emt 0:00:32] [#]} (20... Na5 $11) 21. Qe2 {[%emt 0:00:18]} (21. Nh2 $1 $16) 21... Rfd8 {[%emt 0:00:11]} (21... Na5 $5) 22. Nh2 {[%emt 0:00:00]} Na5 {[%emt 0:02:54] [#]} (22... Be7 $16) 23. Ng4 {[%emt 0:00:21]} (23. Bxd5 $1 $18 {And now Nxa5 would win.} Rxd5 (23... Bxd5 24. Nxa5 Ba8 25. Nc4 $11) 24. Nxa5 (24. Bf4 e5 $17)) 23... Nxc4 $14 {[%emt 0:00:59]} 24. dxc4 {[%emt 0:00:03]} h5 $1 {[%emt 0:00:01]} 25. cxd5 {[%emt 0:02:36]} hxg4 {[%emt 0:00:02]} 26. Bf4 $1 {[%emt 0:00:05]} (26. dxe6 $2 {loses.} Rxd2 27. Qxg4 Bxg2 28. Kxg2 Qc6+ 29. Kg1 fxe6 30. Rxe6 Qd5 $19) (26. Qxg4 Bxd5 27. Bxd5 Rxd5 $11) 26... e5 $1 {[%emt 0:00:05]} 27. Be3 {[%emt 0:00:14]} (27. Bxe5 {simplifies} Bxe5 28. Qxe5 Qxe5 29. Rxe5 Bxd5 30. Rce1) 27... Bxd5 {[%emt 0:00:20]} 28. Bxd5 {[%emt 0:00:03]} Rxd5 {[%emt 0:00:01]} 29. Qxg4 {[%emt 0:00:01]} Qc8 {[%emt 0:00:46]} (29... c4 $11 {remains equal.}) 30. Qxc8 $16 {[%emt 0:00:42]} Rxc8 {[%emt 0:00:01]} 31. Red1 {[%emt 0:00:00] Repels c4} Rxd1+ {[%emt 0:00:12]} 32. Rxd1 {[%emt 0:00:00]} e4 {[%emt 0:00:13]} 33. c4 {[%emt 0:02:20]} Bd4 {[%emt 0:00:03]} 34. Rb1 {[%emt 0:00:19]} ({Don't play} 34. Bxd4 Rd8 $18) 34... Bxe3 {[%emt 0:00:56]} 35. fxe3 {[%emt 0:00:00]} Rd8 {[%emt 0:00:04] Weighted Error Value: White=0.15 (very precise) /Black=0.15 (very precise) .  Mistake:       	White=2     	Black=3      Inaccurate:     	White=1     	Black=2      OK:         	White=7     	Black=14     Best:        	White=2     	Black=2      Strong:       	White=1     	Black=2} 1/2-1/2

[Event "CCT Chessable Masters D-III 2024"]
[Site "Online"]
[Date "2024.02.05"]
[Round "57"]
[White "Bortnyk, Oleksandr"]
[Black "Safarli, Eltaj"]
[Result "1-0"]
[ECO "D00"]
[WhiteElo "2655"]
[BlackElo "2604"]
[Annotator "TA"]
[PlyCount "46"]
[EventDate "2024.01.12"]
[EventType "k.o."]
[EventCountry "NET"]
[SourceTitle "playchess.com"]
[Source "ChessBase"]
[SourceQuality "1"]
[TimeControl "600+2"]

{[%evp 9,46,-20,-18,-24,-24,-17,2,0,6,0,41,45,38,36,30,27,670,669,687,670,701,680,695,689,854,812,839,831,828,744,996,869,1132,1097,1055,989,1273,1262,1752]} 1. d4 {[%emt 0:00:04]} Nf6 {[%emt 0:01:05]} 2. Nc3 {[%emt 0:00:03]} d5 {[%emt 0:00:03]} 3. Bf4 {[%emt 0:00:03]} a6 {[%emt 0:00:11]} 4. e3 {[%emt 0:00:03]} e6 {[%emt 0:00:03]} 5. a3 {[%emt 0:00:03]} c5 {[%emt 0:00:05]} 6. Nf3 {[%emt 0:00:03]} Nc6 {[%emt 0:00:04]} 7. Bd3 {[%emt 0:00:03]} b5 {[%emt 0:00:20]} 8. dxc5 {[%emt 0:00:05] The position is equal.} Bxc5 {[%emt 0:00:04]} 9. O-O {[%emt 0:00:02]} Qe7 {[%emt 0:00:26]} 10. e4 {[%emt 0:00:05]} d4 {[%emt 0:00:02][%cal Bd5d4,Bd4c3][%mdl 32]} 11. e5 {[%emt 0:00:18]} dxc3 {[%emt 0:00:07]} 12. exf6 {[%emt 0:00:02]} Qxf6 {[%emt 0:00:02][%mdl 8192] [#] Loses the game.} (12... gxf6 $11 13. bxc3 Bb7) 13. Bg5 $18 {[%emt 0:00:04] White is clearly winning.} cxb2 {[%emt 0:00:26]} 14. Bxf6 {[%emt 0:00:04]} gxf6 {[%emt 0:00:02]} 15. Ra2 {[%emt 0:00:10][%cal Ba1a2,Ba2b2,Bb2b3][%mdl 32]} Bb7 {[%emt 0:00:12]} 16. Rxb2 {[%emt 0:00:04]} O-O-O {[%emt 0:00:03]} 17. Qe2 {[%emt 0:00:13]} Rhg8 {[%emt 0:00:14]} 18. g3 {[%emt 0:00:08]} (18. Bxh7 $2 {too greedy.} Nd4 19. Qd3 Bxf3 (19... Nxf3+ 20. Kh1 $19) 20. Bxg8 Rxg8 $19) 18... Bxa3 {[%emt 0:01:45]} 19. Rb3 {[%emt 0:00:08]} Bd6 {[%emt 0:00:27]} 20. Be4 {[%emt 0:00:04]} f5 {[%emt 0:00:13]} 21. Bxc6 {[%emt 0:00:05]} Bxc6 {[%emt 0:00:02]} 22. c4 {[%emt 0:00:03]} Rg4 {[%emt 0:00:20]} 23. cxb5 {[%emt 0:00:13]} Bxb5 {[%emt 0:00:04] Weighted Error Value: White=0.06 (flawless) /Black=0.67.  Loses game:     	---       	Black=1      Inaccurate:     	---       	Black=1      OK:         	White=4     	Black=4      Best:        	White=2     	---} 1-0

[Event "CCT Chessable Masters D-III 2024"]
[Site "Online"]
[Date "2024.02.05"]
[Round "57"]
[White "Bortnyk, Oleksandr"]
[Black "Safarli, Eltaj"]
[Result "0-1"]
[ECO "B22"]
[WhiteElo "2653"]
[BlackElo "2604"]
[Annotator "TA"]
[PlyCount "76"]
[EventDate "2024.01.12"]
[EventType "k.o."]
[EventCountry "NET"]
[SourceTitle "playchess.com"]
[Source "ChessBase"]
[SourceQuality "1"]
[TimeControl "600+2"]

{[%evp 9,75,15,19,22,18,12,22,41,30,0,3,0,-10,0,-21,-11,0,-45,-55,-43,-62,-45,-41,-35,-32,-40,-39,-34,-37,-80,-93,-145,-142,-172,-145,-150,-149,-135,-110,-154,-152,-266,-80,-256,-257,-257,-262,-272,-255,-449,-461,-458,-414,-452,-425,-503,-508,-581,-575,-1715,-945,-29976,-29977,-29990,-29989,-29998,-29999,-29999]} 1. e4 {[%emt 0:00:17]} c5 {[%emt 0:00:03]} 2. c3 {[%emt 0:00:04]} d5 {[%emt 0:00:02]} 3. exd5 {[%emt 0:00:00]} Nf6 {[%emt 0:00:00]} 4. Qa4+ {[%emt 0:00:02]} Nbd7 {[%emt 0:00:05]} 5. Qb3 {[%emt 0:00:11]} g6 {[%emt 0:00:13]} 6. Nf3 {[%emt 0:00:30]} Bg7 {[%emt 0:00:03]} 7. Be2 {[%emt 0:00:21]} O-O {[%emt 0:00:01]} 8. O-O {[%emt 0:00:02] The position is equal.} b6 {[%emt 0:00:50]} 9. d4 {[%emt 0:00:48]} Bb7 $1 {[%emt 0:00:04]} 10. Bc4 {[%emt 0:00:32]} Rc8 {[%emt 0:01:07]} 11. Re1 {[%emt 0:00:11] Wards off Ne4} Qc7 {[%emt 0:00:26] White should prevent ...cxd4.} 12. Nbd2 {[%emt 0:00:22]} Qd6 {[%emt 0:00:02]} 13. Ne4 {[%emt 0:00:11]} Nxe4 {[%emt 0:00:03]} 14. Rxe4 {[%emt 0:00:00] Strongly threatening Bf4.} cxd4 {[%emt 0:00:39]} 15. cxd4 {[%emt 0:00:26] [#] aiming for Bf4.} Rxc4 $1 {[%emt 0:00:14]} 16. Qxc4 {[%emt 0:00:36] Bf4 would now be deadly.} Bxd5 {[%emt 0:00:01] This pair of bishops is nice.} 17. Qe2 {[%emt 0:00:09] Hoping for Bf4.} Bxe4 {[%emt 0:00:02]} 18. Qxe4 {[%emt 0:00:00]} Nf6 {[%emt 0:00:04]} 19. Qh4 {[%emt 0:00:04]} Rc8 {[%emt 0:00:06]} 20. Bh6 {[%emt 0:00:19]} ({White should play} 20. Qf4) 20... Rc2 $17 {[%emt 0:00:09]} 21. b3 {[%emt 0:00:34]} Qc7 {[%emt 0:00:57]} 22. h3 {[%emt 0:00:35]} Qc3 {[%emt 0:00:42]} 23. Re1 {[%emt 0:00:04]} e6 {[%emt 0:00:00]} (23... Rxa2 $2 24. Rxe7 Qc2 25. Bxg7 (25. Ne5 Bxh6 26. Nf3 Ra1+ 27. Re1 Rxe1+ 28. Nxe1 Qc1 $19) 25... Kxg7 26. Ne5 Qxb3 27. Qf4 $18 (27. Rxf7+ Qxf7 28. Nxf7 Kxf7 $18)) 24. Bg5 {[%emt 0:02:53]} Nd5 $36 {[%emt 0:00:16][%cal Og7f8][%mdl 2048] Black is on the roll. Black is more active.} 25. Bh6 {[%emt 0:00:00]} (25. Qg3 $17) 25... Bf6 $2 {[%emt 0:00:45]} (25... Rxa2 26. Qd8+) (25... Bxh6 $19 {is more deadly.} 26. Qxh6 Nf6 (26... Rxa2 27. Qh4 $19)) 26. Bg5 {[%emt 0:00:01] [#] Now White is beyond hope.} (26. Qg4 $17 Bg7 (26... Rxa2 27. Rxe6 Qc8 28. Re1 $18) 27. Bxg7 Kxg7 28. Qe4) 26... Bxg5 $1 $19 {[%emt 0:00:09]} 27. Qxg5 {[%emt 0:00:00]} Rxa2 {[%emt 0:00:00]} 28. h4 {[%emt 0:00:13]} h5 {[%emt 0:00:25][%cal Oa2a1]} (28... Qxb3 29. h5 Qa3 30. Re4 $17) 29. Rc1 $2 {[%emt 0:00:41]} (29. Qe5) 29... Ra1 {[%emt 0:00:09]} (29... Qxb3 30. Rc8+ Kh7 31. Qd8 Ra1+ 32. Kh2) 30. Rxa1 {[%emt 0:00:04]} Qxa1+ {[%emt 0:00:01][%mdl 4096] Endgame. KQN-KQN} 31. Kh2 {[%emt 0:00:00]} Qb2 {[%emt 0:00:15][%csl LRb3,LRf2]} 32. Qd8+ {[%emt 0:00:34]} Kg7 {[%emt 0:00:02]} 33. Ne5 {[%emt 0:00:02]} Qxf2 {[%emt 0:00:21][%cal Od5f4] ...Nf4! is the strong threat.} 34. Nd7 {[%emt 0:00:01]} Qf4+ {[%emt 0:00:02]} (34... Qxd4 $2 35. Qf8+ Kh7 36. Qxf7+ Kh6 37. g3 $17) 35. Kh1 {[%emt 0:00:01]} Ne3 {[%emt 0:00:13] Black mates.} (35... Qxd4 36. Qf8+ Kh7 37. Qxf7+ Kh6 38. g3 $17) 36. Qf8+ {[%emt 0:00:10]} Kh7 {[%emt 0:00:02]} 37. Qe7 {[%emt 0:00:01]} Qf1+ {[%emt 0:00:02]} 38. Kh2 {[%emt 0:00:01]} Qxg2# {[%emt 0:00:00] Weighted Error Value: White=0.70/Black=0.25 (precise) .  Loses game:     	White=1     	---        Missed win:     	---       	Black=1      Mistake:       	White=3     	---        Inaccurate:     	White=6     	Black=1      OK:         	White=6     	Black=12     Best:        	White=2     	Black=4      Strong:       	---       	Black=2} 0-1

[Event "CCT Chessable Masters D-III 2024"]
[Site "Online"]
[Date "2024.02.05"]
[Round "57"]
[White "Safarli, Eltaj"]
[Black "Bortnyk, Oleksandr"]
[Result "0-1"]
[ECO "B04"]
[WhiteElo "2604"]
[BlackElo "2646"]
[Annotator "TA"]
[PlyCount "82"]
[EventDate "2024.01.12"]
[EventType "k.o."]
[EventCountry "NET"]
[SourceTitle "playchess.com"]
[Source "ChessBase"]
[SourceQuality "1"]
[TimeControl "600+2"]

{[%evp 23,82,22,36,50,45,14,18,14,13,12,16,0,0,0,-12,-168,-144,-222,-191,-217,-202,-198,-192,-293,-276,-324,-250,-252,-212,-393,-209,-209,171,-610,-640,-943,-876,-1032,-1050,-1170,-1236,-1218,-1141,-1540,-1343,-1362,-1418,-2102,-584,-522,-177,-1684,-1658,-2159,-2696,-2222,-1958,-29973,-5114,-29989,-29990]} 1. e4 {[%emt 0:00:02]} Nf6 {[%emt 0:00:03]} 2. e5 {[%emt 0:00:02]} Nd5 {[%emt 0:00:00]} 3. d4 {[%emt 0:00:03]} d6 {[%emt 0:00:01]} 4. Nf3 {[%emt 0:00:00]} dxe5 {[%emt 0:00:00]} 5. Nxe5 {[%emt 0:00:01]} c6 {[%emt 0:00:00]} 6. Be2 {[%emt 0:00:06]} Bf5 {[%emt 0:00:01] B04: Alekhine's Defence: 4 Nf3.} 7. O-O {[%emt 0:00:01]} Nd7 {[%emt 0:00:01]} 8. Bd3 {[%emt 0:00:01]} Bxd3 {[%emt 0:00:00]} 9. Nxd3 {[%emt 0:00:00]} g6 $5 {[%emt 0:00:03][%mdl 4] Leaves trodden paths.} 10. Nd2 {[%emt 0:00:46]} Bg7 {[%emt 0:00:02]} 11. Nf3 {[%emt 0:00:00]} b5 {[%emt 0:00:06]} 12. Re1 {[%emt 0:00:02]} O-O {[%emt 0:00:02]} 13. Bg5 {[%emt 0:00:06]} Re8 {[%emt 0:00:01]} 14. Qd2 $146 {[%emt 0:00:06]} ({Predecessor:} 14. c3 a5 15. Rc1 Qb6 16. c4 bxc4 17. Rxc4 e6 18. Qc2 Rec8 19. Rc1 Nb4 20. Nxb4 axb4 {½-½ Becerra Rivero,J (2506)-Bortnyk,O (2599) Space Coast op 26th 2019 (4)}) 14... Qb6 {[%emt 0:00:05]} 15. Re4 {[%emt 0:00:29]} e6 {[%emt 0:00:27]} 16. Rae1 {[%emt 0:00:12]} c5 {[%emt 0:00:08]} 17. Bh6 {[%emt 0:01:02]} (17. Nde5 {with more complications.} Qc7 18. Bh6 f5 19. R4e2) 17... Bxd4 {[%emt 0:00:24]} 18. Nxd4 {[%emt 0:01:02]} cxd4 {[%emt 0:00:00]} 19. Rh4 $2 {[%emt 0:00:01]} (19. Nf4 $11 {and White has nothing to worry.} Nxf4 20. Bxf4) 19... e5 $19 {[%emt 0:00:19]} 20. h3 {[%emt 0:01:26]} (20. c3 $17) 20... Rac8 {[%emt 0:00:17]} 21. c3 {[%emt 0:00:19]} dxc3 {[%emt 0:00:18]} 22. bxc3 {[%emt 0:00:00]} Nxc3 {[%emt 0:00:45]} (22... Rxc3 23. Nf4 Nxf4 24. Qxc3 $16) 23. Be3 {[%emt 0:01:57]} (23. Rc1 $142 Na4 24. Rxc8 Rxc8 25. Re4) 23... Qd6 {[%emt 0:00:19]} 24. Bxa7 {[%emt 0:00:13]} e4 {[%emt 0:00:51]} 25. Qh6 {[%emt 0:00:02]} Qxd3 {[%emt 0:00:02]} (25... exd3 26. Qxh7+ Kf8 27. Qh8#) 26. Qxh7+ {[%emt 0:00:21]} Kf8 {[%emt 0:00:01]} 27. Rf4 {[%emt 0:00:13] [#]} Qd5 $4 {[%emt 0:00:29][%mdl 8192]} (27... Nxa2 28. Rxf7#) (27... Qc4 $1 $19 {and all is fine. ...Ne2+ is the strong threat.} 28. Be3 Ke7 (28... Qxa2 $2 29. Bd4 $18)) 28. Re3 $4 {[%emt 0:00:53][%mdl 8192]} (28. Bd4 $18 b4 (28... Qxd4 29. Rxf7#) 29. Bxc3) 28... Ke7 $19 {[%emt 0:00:35]} (28... Qxa2 $2 {perishes.} 29. Bd4 (29. Rxc3 Rxc3 30. Qh8+ Ke7 $18) 29... g5 30. Bxc3 gxf4 31. Bg7+ (31. Rxe4 $2 {too greedy.} Qb1+ 32. Kh2 Rxe4 $19) (31. Qh8+ Ke7 $14) 31... Ke7 32. Qxe4+ Qe6 (32... Kd6 $2 33. Rd3+ Kc7 34. Qxf4+ Kb6 35. Qd6+ Kb7 36. Qxd7+ Ka8 37. Qxb5 $18) 33. Qxf4 $18 (33. Qb4+ Kd8 $18)) 29. Bd4 {[%emt 0:00:59]} Qxd4 {[%emt 0:00:20]} 30. Rxf7+ {[%emt 0:00:01]} Ke6 {[%emt 0:00:19]} 31. Qxg6+ {[%emt 0:00:04]} Nf6 {[%emt 0:00:01]} 32. Rb7 {[%emt 0:00:13]} Ncd5 {[%emt 0:00:09]} 33. Re1 {[%emt 0:00:08]} Rg8 {[%emt 0:00:28]} 34. Qf7+ {[%emt 0:00:01]} Kd6 {[%emt 0:00:04]} 35. Ra7 {[%emt 0:00:04]} Qb6 {[%emt 0:00:33]} 36. Rd1 {[%emt 0:00:03]} Ke5 $2 {[%emt 0:00:13]} (36... Qd8 {Hoping for ...Ke5.} 37. Rb7 Rf8) 37. Rd7 $2 {[%emt 0:00:09]} (37. Rxd5+ Nxd5 38. Qh5+ Kf4 (38... Kd4 $2 39. Qd1+ Ke5 40. Qh5+ Kd6 41. Qh6+ $19) 39. Qh4+ Kf5 (39... Ke5 $2 40. Qh5+ Kf4 41. Qh4+ Kf5 42. Qh5+ Ke6 43. Qf7+ Ke5 44. Qh5+ $19) 40. Qh5+ Rg5 41. g4+ Kf6 42. Rf7+ Ke6 43. Qxg5 Kxf7 44. Qf5+ Ke7 45. Qxc8) 37... Qe6 $19 {[%emt 0:00:23]} 38. R1xd5+ {[%emt 0:00:07]} Nxd5 {[%emt 0:00:06]} 39. Qh5+ {[%emt 0:00:03]} Kd4 {[%emt 0:00:13]} 40. Qd1+ {[%emt 0:00:01]} Kc5 {[%emt 0:00:00]} 41. Qc1+ {[%emt 0:00:03]} Kb6 {[%emt 0:00:02]} 0-1

[Event "CCT Chessable Masters D-III 2024"]
[Site "Online"]
[Date "2024.02.05"]
[Round "58"]
[White "Grischuk, Alexander"]
[Black "Bortnyk, Oleksandr"]
[Result "1-0"]
[ECO "E64"]
[WhiteElo "2732"]
[BlackElo "2655"]
[Annotator "TA"]
[PlyCount "104"]
[EventDate "2024.01.12"]
[EventType "k.o."]
[EventCountry "NET"]
[SourceTitle "playchess.com"]
[Source "ChessBase"]
[SourceQuality "1"]
[TimeControl "600+2"]

{[%evp 20,104,46,46,45,30,21,25,29,23,33,47,32,46,31,0,0,0,45,35,37,27,25,0,30,0,0,0,0,0,0,0,0,0,20,0,0,0,0,0,0,0,0,0,0,0,0,0,0,0,0,0,0,0,8,0,0,0,16,5,317,0,339,296,344,342,319,295,606,570,789,736,858,855,982,967,29962,5939,29980,29981,29981,29982,29982,29983,29987,29979,29989]} 1. d4 {[%emt 0:00:02]} Nf6 {[%emt 0:00:12]} 2. Nf3 {[%emt 0:00:10]} g6 {[%emt 0:00:09]} 3. c4 {[%emt 0:00:20]} Bg7 {[%emt 0:00:01]} 4. g3 {[%emt 0:00:01]} O-O {[%emt 0:00:04]} 5. Bg2 {[%emt 0:00:03]} d6 {[%emt 0:00:00]} 6. Nc3 {[%emt 0:00:02]} Bf5 {[%emt 0:00:19]} 7. Nh4 {[%emt 0:00:35]} Bc8 {[%emt 0:00:01]} 8. O-O {[%emt 0:00:20]} c5 {[%emt 0:01:05]} 9. d5 {[%emt 0:01:19]} Na6 {[%emt 0:00:25]} 10. Nf3 {[%emt 0:00:08]} Bf5 {[%emt 0:00:10] E64: King's Indian: Fianchetto: 6...c5 7 d5.} 11. Ne1 $5 {[%emt 0:00:39][%mdl 4] Exploring less charted territory.} Qd7 {[%emt 0:00:20]} 12. e4 {[%emt 0:00:08]} Bh3 {[%emt 0:00:06]} 13. Nd3 $146 {[%emt 0:00:06]} ({Predecessor:} 13. Nc2 Nc7 14. Ne3 Bxg2 15. Kxg2 b5 16. Qc2 Rab8 17. Rb1 b4 18. Ne2 b3 19. axb3 Na6 20. Bd2 Nb4 21. Bxb4 Rxb4 {½-½ Fernandez Suarez,C-Gomez,F Asturias-chT Preferente 1998 (7)}) 13... Bxg2 {[%emt 0:00:20]} 14. Kxg2 {[%emt 0:00:00]} b5 {[%emt 0:00:01]} 15. cxb5 {[%emt 0:00:44]} Nc7 {[%emt 0:00:02]} 16. a4 {[%emt 0:00:01]} Rfb8 {[%emt 0:00:05]} 17. Re1 {[%emt 0:00:15]} a6 {[%emt 0:00:04]} 18. bxa6 {[%emt 0:00:00]} c4 {[%emt 0:00:13]} 19. a7 {[%emt 0:00:45]} Rxa7 {[%emt 0:00:19]} 20. Nf4 $1 {[%emt 0:00:01]} Ng4 {[%emt 0:00:33]} 21. Ra3 {[%emt 0:01:39]} Rb4 {[%emt 0:01:26]} 22. Re2 {[%emt 0:00:46]} Bxc3 {[%emt 0:00:34]} 23. bxc3 {[%emt 0:00:11]} (23. Rxc3 {is more complex.} Raxa4 24. b3 Nb5 25. Rxc4 Rxc4 26. bxa4 Nc3 27. Qb3) 23... Rbxa4 {[%emt 0:00:01]} 24. Rxa4 {[%emt 0:00:01]} Qxa4 {[%emt 0:00:15]} 25. Qxa4 {[%emt 0:00:12]} Rxa4 {[%emt 0:00:00]} 26. Rb2 {[%emt 0:00:01]} Ra1 {[%emt 0:00:15]} 27. Bd2 {[%emt 0:00:07]} Na6 {[%emt 0:00:01]} 28. f3 {[%emt 0:00:10]} Ne5 {[%emt 0:00:06]} 29. Be3 {[%emt 0:00:01]} Nc5 {[%emt 0:00:45]} 30. Bxc5 {[%emt 0:00:01]} dxc5 {[%emt 0:00:01]} 31. Ne2 {[%emt 0:00:13]} Nd3 {[%emt 0:00:04]} 32. Rb8+ {[%emt 0:00:17]} Kg7 {[%emt 0:00:01]} 33. f4 {[%emt 0:00:01]} Ra2 {[%emt 0:01:17]} 34. Kf3 {[%emt 0:00:03]} h5 {[%emt 0:00:11]} 35. Rb7 {[%emt 0:00:23]} Kf8 $1 {[%emt 0:00:16]} 36. Rb8+ {[%emt 0:00:04]} Kg7 {[%emt 0:00:01]} 37. Rb7 {[%emt 0:00:00]} Kf8 $1 {[%emt 0:00:20]} 38. e5 {[%emt 0:00:01]} Rd2 {[%emt 0:00:35]} 39. Ke3 {[%emt 0:00:12]} Ra2 $2 {[%emt 0:00:16][%mdl 8192]} (39... Rd1 $1 $11 {and Black is okay.}) 40. Rb8+ $1 $18 {[%emt 0:00:33]} Kg7 {[%emt 0:00:01] [#]} 41. d6 $1 {[%emt 0:00:07]} exd6 {[%emt 0:00:00]} 42. exd6 {[%emt 0:00:00]} Ra7 {[%emt 0:00:00] [#]} 43. Ke4 $1 {[%emt 0:00:01]} Kf6 $2 {[%emt 0:00:24]} (43... Nf2+ 44. Kd5 Ng4 45. Kxc5 h4) 44. Kd5 $18 {[%emt 0:00:02]} Nf2 {[%emt 0:00:07]} 45. Re8 {[%emt 0:00:27]} ({Weaker is} 45. Kxc4 Ke6 $18) 45... Ng4 {[%emt 0:00:04]} 46. Kc6 {[%emt 0:00:09]} Kf5 {[%emt 0:00:01]} 47. h3 {[%emt 0:00:02]} Ra6+ {[%emt 0:00:02]} 48. Kxc5 {[%emt 0:00:02]} Ra5+ {[%emt 0:00:03]} 49. Kb6 {[%emt 0:00:03]} Rd5 {[%emt 0:00:01]} 50. hxg4+ {[%emt 0:00:03]} Kxg4 {[%emt 0:00:00]} 51. Kc6 {[%emt 0:00:01]} Rd2 {[%emt 0:00:01]} 52. d7 {[%emt 0:00:02]} g5 {[%emt 0:00:01]} 1-0